bitfinex-derivatives/quotes_BTCF0:USTF0_20241203
["timestamp","ask_amount","ask_price","bid_price","bid_amount"]
[1733257500323,0.13444,95378.0,95377.0,1.32354433]
[1733257500916,0.32241763,95378.0,95377.0,1.32354433]
[1733257501616,0.13444,95378.0,95377.0,1.32354433]
[1733257501919,0.3931,95381.0,95377.0,0.10684653]
[1733257502115,0.13476,95380.0,95379.0,0.052399]
[1733257502516,0.87228078,95380.0,95379.0,0.052399]
[1733257503617,0.73752078,95380.0,95379.0,0.052399]
[1733257503811,0.0105,95387.0,95380.0,0.052398]
[1733257503812,0.18789726,95386.0,95380.0,0.052398]
[1733257504011,0.0105,95387.0,95380.0,0.052398]
[1733257504012,0.15659174,95381.0,95380.0,0.052398]
[1733257504216,0.15659174,95382.0,95381.0,0.052398]
[1733257504612,0.15659174,95382.0,95381.0,0.052438]
[1733257505015,0.15659174,95382.0,95381.0,1.65728233]
[1733257505215,0.29135174,95382.0,95381.0,1.65728233]
[1733257505813,0.04222787,95382.0,95381.0,1.65728233]
[1733257506125,0.0105,95387.0,95386.0,0.052395]
[1733257506324,0.13476,95389.0,95388.0,0.052394]
[1733257506618,0.13476,95389.0,95388.0,0.052434]
[1733257506823,0.13476,95389.0,95388.0,1.65727613]
[1733257507514,0.0105,95394.0,95388.0,1.65727613]
[1733257507711,0.0105,95394.0,95393.0,0.052391]
[1733257507913,0.13476,95394.0,95393.0,4e-05]
[1733257508123,0.001,95389.0,95388.0,0.00056]
[1733257508326,0.001,95389.0,95388.0,0.052394]
[1733257508513,0.40750001,95396.0,95395.0,0.05239]
[1733257508514,0.0105,95396.0,95395.0,0.05239]
[1733257508717,0.13472,95397.0,95395.0,0.05239]
[1733257509028,0.13472,95397.0,95396.0,1.552389]
[1733257509212,0.13472,95397.0,95396.0,1.65721574]
[1733257509523,0.11113169,95397.0,95396.0,1.65721574]
[1733257509716,0.11113169,95397.0,95396.0,1.69031574]
[1733257510526,0.11413169,95397.0,95396.0,1.69031574]
[1733257511323,0.11413169,95397.0,95396.0,1.65721574]
[1733257514023,0.11413169,95397.0,95396.0,0.10482674]
[1733257514429,0.11413169,95397.0,95396.0,0.15721574]
[1733257514616,0.11413169,95397.0,95396.0,0.052389]
[1733257514822,0.90261105,95397.0,95396.0,0.052389]
[1733257515017,0.90261105,95397.0,95395.0,4e-05]
[1733257515225,0.3879706,95396.0,95385.0,0.052395]
[1733257515427,0.3879706,95396.0,95381.0,0.0105]
[1733257515428,0.3608,95386.0,95381.0,0.052397]
[1733257515632,0.40636053,95385.0,95382.0,1.552397]
[1733257515927,0.19962,95385.0,95384.0,0.052396]
[1733257516128,1.14418804,95385.0,95384.0,0.052396]
[1733257516828,0.97676804,95385.0,95384.0,0.15723593]
[1733257517029,0.18569143,95385.0,95384.0,0.15723593]
[1733257517223,0.34077403,95385.0,95384.0,0.15723593]
[1733257517524,0.18569143,95385.0,95384.0,0.15723593]
[1733257517725,0.18569143,95385.0,95384.0,1.65723593]
[1733257517924,0.18777671,95385.0,95384.0,1.65723593]
[1733257518433,0.05097143,95385.0,95384.0,1.65723593]
[1733257520131,0.05097143,95385.0,95384.0,1.26913593]
[1733257520434,0.05097143,95385.0,95384.0,1.42637076]
[1733257521929,0.09799044,95389.0,95384.0,1.42637076]
[1733257522125,0.09799044,95389.0,95388.0,0.413194]
[1733257522334,0.22318771,95389.0,95388.0,0.413234]
[1733257522534,0.09799044,95389.0,95388.0,0.413234]
[1733257522723,0.22319787,95389.0,95388.0,2.01807283]
[1733257523422,0.09799044,95389.0,95388.0,2.01807283]
[1733257523931,0.09899044,95389.0,95388.0,2.01807283]
[1733257524235,0.22421334,95389.0,95388.0,2.01807283]
[1733257524432,0.05952036,95390.0,95388.0,1.62997283]
[1733257524627,0.02318949,95390.0,95389.0,0.052393]
[1733257524825,0.14522,95396.0,95395.0,0.05239]
[1733257525030,0.13472,95396.0,95395.0,0.05239]
[1733257525328,0.13472,95396.0,95395.0,1.65726334]
[1733257526035,0.3608,95398.0,95397.0,0.052389]
[1733257526723,0.3608,95398.0,95397.0,0.15721574]
[1733257526929,0.3608,95398.0,95397.0,0.15725574]
[1733257528527,0.3608,95398.0,95397.0,0.15825574]
[1733257529438,0.3608,95398.0,95397.0,0.15725574]
[1733257529629,0.3608,95398.0,95397.0,0.15925574]
[1733257530834,0.3608,95398.0,95395.0,0.00056]
[1733257531034,0.3608,95398.0,95397.0,0.15721354]
[1733257531437,0.3608,95398.0,95397.0,0.052389]
[1733257531632,0.3608,95398.0,95397.0,0.15721354]
[1733257531633,0.2264415,95398.0,95397.0,0.15721354]
[1733257531833,0.03212294,95400.0,95399.0,0.052388]
[1733257532145,0.02894071,95400.0,95399.0,0.052428]
[1733257532539,0.02894071,95400.0,95399.0,1.65725254]
[1733257532845,0.01956381,95400.0,95399.0,1.65725254]
[1733257533044,0.0073794,95400.0,95399.0,1.65725254]
[1733257534545,0.0073794,95400.0,95399.0,1.65825254]
[1733257535635,0.0073794,95400.0,95399.0,0.15825254]
[1733257536244,0.0073794,95400.0,95399.0,0.18786083]
[1733257536641,0.3681794,95400.0,95399.0,0.18786083]
[1733257537051,0.05833368,95400.0,95399.0,0.18786083]
[1733257537248,0.0073794,95400.0,95399.0,0.18786083]
[1733257538143,0.0073794,95400.0,95390.0,1.45109574]
[1733257538340,0.0073794,95400.0,95399.0,0.15721035]
[1733257538540,0.0073794,95400.0,95399.0,0.052388]
[1733257538848,0.0073794,95400.0,95399.0,0.07335362]
[1733257540651,0.0073794,95400.0,95399.0,0.10410606]
[1733257541543,0.0073794,95400.0,95399.0,0.10510606]
[1733257541942,0.0073794,95400.0,95399.0,1.60510606]
[1733257542645,0.0073794,95400.0,95399.0,1.60410606]
[1733257542846,0.0073794,95400.0,95399.0,1.60510606]
[1733257544050,0.0073794,95400.0,95399.0,0.001]
[1733257544353,0.0073794,95400.0,95399.0,0.053388]
[1733257545356,0.0073794,95400.0,95399.0,0.08305228]
[1733257545652,0.0073794,95400.0,95399.0,0.08205228]
[1733257545855,0.0073794,95400.0,95399.0,0.08305228]
[1733257546847,0.74490018,95400.0,95399.0,0.08305228]
[1733257547043,0.77810018,95400.0,95399.0,0.08305228]
[1733257547250,0.75451104,95400.0,95399.0,0.08305228]
[1733257547644,0.88971104,95400.0,95388.0,0.052396]
[1733257547845,0.3608,95389.0,95384.0,0.02096958]
[1733257548056,0.3608,95389.0,95376.0,0.24960014]
[1733257548057,0.3608,95385.0,95376.0,9.515e-05]
[1733257548257,0.3608,95377.0,95376.0,0.05249815]
[1733257548457,0.54696164,95377.0,95376.0,0.05249815]
[1733257548759,1.26827268,95377.0,95376.0,0.05249815]
[1733257549557,1.26827268,95377.0,95376.0,0.07346607]
[1733257549860,1.21731104,95377.0,95376.0,0.10404952]
[1733257550764,1.21831104,95377.0,95376.0,0.11104952]
[1733257550963,1.25091104,95377.0,95376.0,0.11104952]
[1733257551265,1.31391104,95377.0,95376.0,0.11104952]
[1733257551460,1.31291104,95377.0,95376.0,0.10804952]
[1733257553056,1.70101104,95377.0,95376.0,0.10804952]
[1733257555561,0.33245348,95374.0,95369.0,0.00056]
[1733257555765,0.3608,95370.0,95368.0,0.0026]
[1733257555961,0.3608,95370.0,95369.0,0.052407]
[1733257556161,1.21735104,95370.0,95369.0,0.052407]
[1733257556460,1.21735104,95370.0,95369.0,0.05250325]
[1733257556764,1.21735104,95370.0,95369.0,0.05850325]
[1733257557657,1.21835104,95370.0,95369.0,0.05850325]
[1733257561273,1.08311104,95370.0,95369.0,0.05850325]
[1733257561462,1.21755104,95370.0,95369.0,0.05850325]
[1733257561968,1.21755104,95370.0,95369.0,1.55850325]
[1733257562158,1.55000452,95370.0,95369.0,1.55850325]
[1733257562354,1.41556452,95370.0,95369.0,0.05850325]
[1733257562567,1.55000452,95370.0,95369.0,0.05850325]
[1733257569968,1.55000452,95370.0,95369.0,0.00609625]
[1733257570365,1.55000452,95370.0,95357.0,0.0026]
[1733257570366,0.34245348,95368.0,95345.0,0.0052]
[1733257570588,1.30270262,95370.0,95345.0,0.05242]
[1733257570589,0.69325348,95346.0,95345.0,0.05242]
[1733257570786,0.82769348,95346.0,95345.0,0.05242]
[1733257570988,1.47766896,95346.0,95345.0,0.05242]
[1733257571396,1.47766896,95346.0,95345.0,0.05254501]
[1733257571793,1.47766896,95346.0,95345.0,0.08282749]
[1733257572391,1.47766896,95346.0,95345.0,0.08482749]
[1733257573190,1.47866896,95346.0,95345.0,0.08482749]
[1733257574099,0.22665807,95343.0,95336.0,1.5]
[1733257574292,0.3608,95337.0,95336.0,1.5]
[1733257574485,0.47163585,95337.0,95336.0,1.52097726]
[1733257574890,0.47163585,95337.0,95336.0,1.57340226]
[1733257575092,0.47163585,95337.0,95336.0,1.57350404]
[1733257575395,0.47163585,95337.0,95336.0,1.68039566]
[1733257576098,0.47163585,95337.0,95336.0,1.67839566]
[1733257576294,0.47263585,95337.0,95336.0,1.68039566]
[1733257576500,0.47263585,95337.0,95336.0,1.71136782]
[1733257576895,0.39110806,95337.0,95336.0,1.71136782]
[1733257577095,0.57484812,95337.0,95336.0,1.71136782]
[1733257578090,0.50623796,95337.0,95336.0,1.71136782]
[1733257578293,0.36209807,95337.0,95336.0,1.71136782]
[1733257578493,0.34214397,95337.0,95336.0,1.71136782]
[1733257578895,0.33837905,95337.0,95336.0,1.71136782]
[1733257579297,0.25404474,95337.0,95336.0,1.71136782]
[1733257579604,0.3608,95346.0,95336.0,1.71136782]
[1733257579605,0.32197,95347.0,95346.0,0.052419]
[1733257579900,0.3877694,95347.0,95346.0,0.052459]
[1733257580095,0.7758694,95347.0,95346.0,0.052459]
[1733257580297,1.29140488,95347.0,95346.0,1.552459]
[1733257580605,1.42584488,95347.0,95346.0,1.552459]
[1733257581405,1.29140488,95347.0,95346.0,1.552459]
[1733257581603,0.3881,95347.0,95346.0,1.65733961]
[1733257581804,6.9e-07,95356.0,95346.0,1.65733961]
[1733257582102,0.33472569,95358.0,95357.0,0.052414]
[1733257582493,0.28058069,95358.0,95357.0,0.052454]
[1733257582690,0.28058069,95358.0,95357.0,1.65732966]
[1733257582894,0.18098106,95358.0,95357.0,1.65732966]
[1733257583101,0.12586206,95358.0,95357.0,1.65732966]
[1733257583406,0.13444,95368.0,95367.0,0.052408]
[1733257583799,0.39656,95373.0,95372.0,0.052406]
[1733257583990,1.04653548,95373.0,95372.0,0.052406]
[1733257584306,0.531,95373.0,95372.0,0.413246]
[1733257584508,0.12506058,95382.0,95372.0,1.96569202]
[1733257584711,0.25950058,95381.0,95373.0,0.052405]
[1733257584912,0.25950058,95381.0,95380.0,0.052401]
[1733257584913,0.13444,95381.0,95380.0,0.052401]
[1733257585205,0.78441548,95381.0,95380.0,0.052401]
[1733257585497,0.78441548,95381.0,95380.0,0.15724808]
[1733257585704,0.78441548,95381.0,95380.0,0.15736648]
[1733257585899,0.0026,95387.0,95384.0,0.052399]
[1733257585900,0.12506058,95385.0,95384.0,0.052399]
[1733257586199,0.13444,95385.0,95384.0,0.1736]
[1733257586404,0.78441548,95385.0,95384.0,1.6736]
[1733257586707,0.13444,95385.0,95384.0,1.83084223]
[1733257587905,0.13744,95385.0,95384.0,1.8615603]
[1733257589094,0.003,95385.0,95384.0,1.8615603]
[1733257589500,0.00011143,95401.0,95384.0,1.8615603]
[1733257589501,0.00011143,95401.0,95391.0,0.052395]
[1733257589701,0.00011143,95401.0,95400.0,0.05239]
[1733257589702,0.61305691,95401.0,95400.0,0.05239]
[1733257590005,0.11482,95402.0,95401.0,0.05239]
[1733257590203,0.13444,95406.0,95405.0,0.052387]
[1733257590707,0.13444,95406.0,95405.0,0.15720825]
[1733257591496,0.39644,95410.0,95409.0,0.052385]
[1733257591703,1.14389691,95410.0,95409.0,0.052385]
[1733257591913,1.14389691,95410.0,95409.0,0.052425]
[1733257592704,1.14589691,95410.0,95409.0,0.052425]
[1733257592904,0.74945691,95410.0,95409.0,0.052425]
[1733257593607,0.61505691,95410.0,95409.0,0.052425]
[1733257593805,0.74945691,95410.0,95409.0,0.052425]
[1733257595014,0.74945691,95410.0,95409.0,0.08308391]
[1733257598905,0.74945691,95410.0,95409.0,0.00714064]
[1733257599105,0.74945691,95410.0,95400.0,0.3608]
[1733257599307,0.86283911,95410.0,95400.0,0.3608]
[1733257599508,0.86283911,95410.0,95409.0,0.052385]
[1733257599713,0.74945691,95410.0,95409.0,0.052385]
[1733257600609,0.95665691,95410.0,95409.0,0.052385]
[1733257600813,0.95465691,95410.0,95409.0,0.052385]
[1733257601803,0.95665691,95410.0,95409.0,0.052385]
[1733257604095,1.34475691,95410.0,95409.0,0.052385]
[1733257604900,1.13755691,95410.0,95409.0,0.15719636]
[1733257605401,1.13751691,95410.0,95409.0,0.15719636]
[1733257605606,1.13751691,95410.0,95409.0,1.65719636]
[1733257607107,0.74941691,95410.0,95409.0,1.65719636]
[1733257607808,0.74941691,95410.0,95409.0,0.15719636]
[1733257608015,0.61505691,95410.0,95409.0,0.15719636]
[1733257608214,0.74941691,95410.0,95409.0,0.15719636]
[1733257610408,0.61505691,95410.0,95409.0,0.15719636]
[1733257610614,0.74941691,95410.0,95409.0,0.15719636]
[1733257611214,0.72583052,95410.0,95409.0,0.15719636]
[1733257611722,0.59147052,95410.0,95409.0,0.15719636]
[1733257612010,0.002,95410.0,95409.0,0.51799636]
[1733257612211,0.13436,95415.0,95414.0,0.052382]
[1733257612410,0.72383052,95415.0,95414.0,0.052382]
[1733257612609,0.72383052,95415.0,95414.0,0.052422]
[1733257612815,0.15648714,95416.0,95414.0,1.60485136]
[1733257613012,0.15648714,95416.0,95415.0,0.052382]
[1733257613013,0.88031766,95416.0,95415.0,0.052382]
[1733257613314,0.3881,95421.0,95415.0,4e-05]
[1733257613315,0.13436,95419.0,95415.0,4e-05]
[1733257613514,0.13436,95419.0,95418.0,0.05238]
[1733257613715,0.13436,95419.0,95418.0,0.05242]
[1733257614116,0.13436,95419.0,95418.0,0.15722532]
[1733257614321,0.13436,95419.0,95418.0,1.65722532]
[1733257614520,0.3881,95421.0,95420.0,0.052379]
[1733257614718,1.16287585,95421.0,95420.0,0.052379]
[1733257615221,1.16287585,95421.0,95420.0,1.65718047]
[1733257615520,1.16287585,95421.0,95420.0,1.65722047]
[1733257616119,0.77477585,95421.0,95420.0,1.65722047]
[1733257616522,0.96755256,95421.0,95420.0,1.65822047]
[1733257617111,0.77977585,95421.0,95420.0,1.65822047]
[1733257617313,0.96766154,95421.0,95420.0,1.65822047]
[1733257617518,0.77977585,95421.0,95420.0,1.65822047]
[1733257617926,0.9676879,95421.0,95420.0,1.65822047]
[1733257618422,0.77977585,95421.0,95420.0,1.65822047]
[1733257618620,0.37821738,95421.0,95420.0,1.65822047]
[1733257618826,0.9676879,95421.0,95420.0,1.65822047]
[1733257619414,0.77977585,95421.0,95420.0,1.65822047]
[1733257619716,0.19412275,95421.0,95420.0,1.65833319]
[1733257619916,0.14826744,95424.0,95423.0,0.052377]
[1733257620126,0.14826744,95424.0,95423.0,0.413177]
[1733257620427,0.13436,95426.0,95425.0,0.052376]
[1733257620820,0.12532577,95428.0,95425.0,4e-05]
[1733257621014,0.12532577,95428.0,95425.0,0.10483598]
[1733257621324,0.52749353,95439.0,95438.0,0.052369]
[1733257621527,0.13432,95439.0,95438.0,0.052369]
[1733257621721,0.13432,95439.0,95438.0,0.052409]
[1733257622021,0.3881,95443.0,95442.0,0.052367]
[1733257622225,1.04991353,95443.0,95442.0,0.052367]
[1733257622418,1.04991353,95443.0,95442.0,0.052407]
[1733257623016,1.04991353,95443.0,95442.0,0.15718651]
[1733257623215,0.52242,95443.0,95442.0,0.15718651]
[1733257623417,0.52442,95443.0,95442.0,0.15718651]
[1733257624616,0.52442,95443.0,95442.0,0.18727545]
[1733257624812,0.3901,95443.0,95442.0,0.18727545]
[1733257625220,0.002,95443.0,95442.0,0.18727545]
[1733257626219,0.002,95443.0,95442.0,1.68727545]
[1733257626521,0.52749353,95445.0,95444.0,0.052366]
[1733257626736,0.66177353,95445.0,95444.0,0.052366]
[1733257626921,0.66177353,95445.0,95444.0,0.052406]
[1733257627228,0.66177353,95445.0,95444.0,0.15718112]
[1733257627423,0.66177353,95445.0,95444.0,4e-05]
[1733257628116,1.26867353,95445.0,95444.0,4e-05]
[1733257628623,1.26867353,95445.0,95444.0,0.052406]
[1733257628925,1.27167353,95445.0,95444.0,0.052406]
[1733257629112,1.13739353,95445.0,95444.0,0.052406]
[1733257629317,1.27167353,95445.0,95444.0,0.052406]
[1733257631420,1.13739353,95445.0,95444.0,0.052406]
[1733257631625,1.27167353,95445.0,95444.0,0.052406]
[1733257632030,1.27167353,95445.0,95444.0,1.552406]
[1733257632528,1.26867353,95445.0,95444.0,1.552406]
[1733257632726,1.27167353,95445.0,95444.0,1.552406]
[1733257635628,1.32261272,95445.0,95444.0,1.552406]
[1733257636332,1.18833272,95445.0,95444.0,1.552406]
[1733257636531,1.32261272,95445.0,95444.0,1.552406]
[1733257638525,1.32261272,95445.0,95444.0,1.50004]
[1733257639335,1.32261313,95445.0,95444.0,1.552406]
[1733257639538,1.46472778,95445.0,95444.0,1.552406]
[1733257641033,1.46172778,95445.0,95444.0,1.552406]
[1733257641333,1.46472778,95445.0,95444.0,1.552406]
[1733257641827,1.46172778,95445.0,95444.0,1.552406]
[1733257642031,1.46472778,95445.0,95444.0,1.552406]
[1733257642631,1.32261313,95445.0,95444.0,1.552406]
[1733257643742,1.18833313,95445.0,95444.0,1.552406]
[1733257644031,1.10381313,95445.0,95444.0,1.552406]
[1733257644436,1.29176126,95445.0,95444.0,1.552406]
[1733257645838,1.10381313,95445.0,95444.0,1.552406]
[1733257647031,0.96953313,95445.0,95444.0,1.552406]
[1733257647340,1.10381313,95445.0,95444.0,1.552406]
[1733257650539,0.96953313,95445.0,95444.0,1.552406]
[1733257650836,1.10381313,95445.0,95444.0,1.552406]
[1733257651939,1.24631991,95445.0,95444.0,1.552406]
[1733257652436,1.24631991,95445.0,95444.0,0.052406]
[1733257652644,1.24631991,95445.0,95444.0,4e-05]
[1733257652844,1.24631991,95445.0,95442.0,0.03008894]
[1733257653145,0.01,95437.0,95426.0,0.20920301]
[1733257653342,0.3608,95433.0,95430.0,0.052373]
[1733257653542,0.3608,95433.0,95426.0,0.20920301]
[1733257653733,0.88829353,95433.0,95432.0,0.052372]
[1733257653939,0.49504,95433.0,95432.0,0.052372]
[1733257654336,0.49504,95433.0,95432.0,1.65714602]
[1733257654637,0.1880873,95438.0,95433.0,0.052372]
[1733257654830,0.1880873,95438.0,95437.0,0.052369]
[1733257655035,0.3881,95445.0,95444.0,0.052366]
[1733257655241,0.44619848,95454.0,95453.0,0.052361]
[1733257655443,0.20167124,95454.0,95453.0,1.552361]
[1733257655751,0.0509255,95458.0,95457.0,0.052358]
[1733257655938,0.38878,95459.0,95453.0,0.10481293]
[1733257656130,0.38878,95459.0,95458.0,0.052358]
[1733257656334,0.38878,95459.0,95458.0,1.552398]
[1733257656545,0.3881,95459.0,95458.0,1.552398]
[1733257657341,0.44102586,95459.0,95458.0,1.552398]
[1733257657541,0.44102586,95459.0,95458.0,1.58258912]
[1733257659346,0.3901,95459.0,95458.0,1.58258912]
[1733257660951,0.002,95459.0,95458.0,1.68746353]
[1733257661136,0.11284235,95477.0,95476.0,0.052348]
[1733257661342,0.66169353,95477.0,95476.0,0.0070289]
[1733257661636,0.05092308,95477.0,95476.0,0.052388]
[1733257661840,0.495,95480.0,95478.0,0.052347]
[1733257662047,0.05091514,95479.0,95478.0,0.052347]
[1733257662249,1.02249353,95480.0,95479.0,0.052346]
[1733257662638,0.88829353,95480.0,95479.0,0.052346]
[1733257662847,0.3608,95480.0,95479.0,0.052346]
[1733257663342,0.3608,95480.0,95479.0,0.053346]
[1733257663343,0.3678,95480.0,95479.0,0.053346]
[1733257664144,0.3678,95480.0,95479.0,1.553346]
[1733257665654,0.3618,95480.0,95479.0,1.552346]
[1733257670252,0.001,95480.0,95479.0,1.65708052]
[1733257670451,0.001,95480.0,95479.0,1.87188052]
[1733257670641,0.11024235,95490.0,95489.0,0.052341]
[1733257671045,0.11024235,95490.0,95489.0,0.052381]
[1733257671550,0.11024235,95496.0,95489.0,1.552381]
[1733257671765,0.11024235,95496.0,95489.0,1.65710455]
[1733257672058,0.11024235,95496.0,95495.0,0.052377]
[1733257673054,0.11324235,95496.0,95495.0,0.052377]
[1733257673543,0.11324235,95496.0,95495.0,0.08208843]
[1733257673751,0.11024235,95496.0,95495.0,0.08208843]
[1733257673948,0.11524235,95496.0,95495.0,0.08208843]
[1733257676353,0.005,95496.0,95495.0,0.08208843]
[1733257681759,0.005,95496.0,95495.0,0.1868054]
[1733257681959,0.005,95496.0,95495.0,0.5476054]
[1733257682859,0.00189142,95496.0,95495.0,0.5476054]
[1733257684260,0.1,95500.0,95499.0,0.052335]
[1733257684761,0.1,95500.0,95499.0,0.052375]
[1733257684955,0.1,95500.0,95499.0,0.15709197]
[1733257685157,0.1,95500.0,95499.0,1.65709197]
[1733257685664,0.76653353,95500.0,95495.0,0.05065839]
[1733257685862,0.11024235,95494.0,95483.0,0.07729824]
[1733257686070,0.3608,95487.0,95483.0,0.10720774]
[1733257686257,0.24428235,95486.0,95484.0,1.5]
[1733257686567,0.20399053,95485.0,95484.0,1.5]
[1733257686963,0.73148406,95485.0,95484.0,1.5]
[1733257687266,0.63773588,95485.0,95484.0,1.5]
[1733257687466,0.63773588,95485.0,95484.0,1.552343]
[1733257688464,0.63873588,95485.0,95484.0,1.552343]
[1733257688865,0.87353588,95485.0,95484.0,1.552343]
[1733257690569,1.02989672,95485.0,95484.0,1.552343]
[1733257691266,0.87353588,95485.0,95484.0,1.552343]
[1733257692569,1.05748976,95485.0,95484.0,1.552343]
[1733257692868,1.05848976,95485.0,95484.0,1.552343]
[1733257695571,1.13292887,95485.0,95484.0,1.552343]
[1733257699162,0.23659534,95485.0,95484.0,1.552343]
[1733257699475,0.22075403,95485.0,95484.0,1.552343]
[1733257699665,0.22175403,95485.0,95484.0,1.552343]
[1733257699867,0.22175403,95485.0,95484.0,1.65707203]
[1733257700173,0.08767403,95485.0,95484.0,1.65707203]
[1733257700385,0.22809524,95489.0,95488.0,0.052339]
[1733257700668,0.13408,95492.0,95491.0,0.052338]
[1733257701061,0.09401524,95496.0,95495.0,0.052335]
[1733257701367,0.31476927,95497.0,95496.0,0.052335]
[1733257701789,0.31476927,95497.0,95496.0,0.052375]
[1733257702670,0.31876927,95497.0,95496.0,0.052375]
[1733257703267,0.23209524,95497.0,95496.0,0.052375]
[1733257704576,0.13808,95497.0,95496.0,0.052375]
[1733257705868,0.67557353,95497.0,95496.0,0.03047311]
[1733257706167,0.83226561,95497.0,95496.0,4e-05]
[1733257706368,0.91891285,95497.0,95496.0,4e-05]
[1733257706671,0.81315776,95497.0,95496.0,4e-05]
[1733257706872,0.81315803,95497.0,95496.0,4e-05]
[1733257707275,0.81315814,95497.0,95496.0,4e-05]
[1733257707575,0.67907814,95497.0,95496.0,0.052375]
[1733257707769,0.81311814,95497.0,95496.0,0.052375]
[1733257708177,0.76220756,95497.0,95496.0,0.052375]
[1733257708473,0.76220756,95497.0,95483.0,0.052342]
[1733257708474,0.08667403,95496.0,95472.0,0.18781071]
[1733257708680,0.01,95483.0,95482.0,0.08327128]
[1733257708977,0.26938631,95483.0,95482.0,0.052342]
[1733257709177,0.79687984,95483.0,95479.0,0.02095]
[1733257709571,0.12534631,95482.0,95479.0,0.02095]
[1733257709771,0.65283984,95482.0,95479.0,0.02095]
[1733257710086,0.65283984,95482.0,95479.0,0.073293]
[1733257710469,0.15668289,95481.0,95479.0,0.02095]
[1733257710874,0.68417642,95481.0,95479.0,0.02095]
[1733257712481,0.22075403,95480.0,95479.0,0.02095]
[1733257712780,0.90493045,95480.0,95479.0,0.02095]
[1733257713284,0.74824756,95480.0,95479.0,0.02095]
[1733257713480,0.90493045,95480.0,95479.0,0.02095]
[1733257713675,0.74824756,95480.0,95479.0,0.02095]
[1733257714878,0.79916265,95480.0,95479.0,0.02095]
[1733257715276,0.77559312,95480.0,95479.0,0.02095]
[1733257717576,0.72467803,95480.0,95479.0,0.02095]
[1733257730187,0.72467803,95480.0,95479.0,0.073293]
[1733257730188,0.61416756,95480.0,95479.0,0.073293]
[1733257730386,0.06310445,95479.0,95470.0,0.03307617]
[1733257730581,0.12543007,95472.0,95470.0,0.03047617]
[1733257730783,0.25942988,95471.0,95470.0,0.052348]
[1733257731684,0.25942988,95471.0,95470.0,0.054348]
[1733257732176,0.134,95471.0,95470.0,0.054348]
[1733257733090,0.07507582,95471.0,95470.0,0.30476228]
[1733257733593,0.07507582,95471.0,95470.0,0.054348]
[1733257734485,0.09410049,95473.0,95470.0,0.054348]
[1733257734685,0.12542988,95477.0,95472.0,0.052347]
[1733257734889,0.02030409,95478.0,95476.0,0.3608]
[1733257735085,0.134,95477.0,95476.0,0.41829722]
[1733257735393,0.02030409,95478.0,95477.0,0.052345]
[1733257735394,0.15430409,95478.0,95477.0,0.052345]
[1733257735695,0.15430409,95478.0,95477.0,0.36597975]
[1733257736387,0.134,95478.0,95477.0,0.47071756]
[1733257737593,0.134,95478.0,95477.0,0.47171756]
[1733257739496,0.134,95478.0,95477.0,0.15812281]
[1733257741190,0.134,95478.0,95477.0,0.053385]
[1733257741385,0.22815303,95478.0,95477.0,0.053385]
[1733257741692,0.66149353,95478.0,95477.0,0.00104]
[1733257742392,0.68179762,95478.0,95477.0,0.00104]
[1733257743690,0.68179762,95478.0,95477.0,4e-05]
[1733257743889,0.68179762,95478.0,95477.0,0.00104]
[1733257744087,0.68179762,95478.0,95477.0,0.18926117]
[1733257744291,0.68167762,95478.0,95477.0,0.18926117]
[1733257744486,0.68167762,95478.0,95477.0,4e-05]
[1733257744695,0.68167762,95478.0,95477.0,0.24060617]
[1733257744990,0.83846521,95478.0,95477.0,0.052385]
[1733257746498,0.68167762,95478.0,95477.0,0.052385]
[1733257747600,0.73259568,95478.0,95477.0,0.052385]
[1733257748099,0.59871568,95478.0,95477.0,0.052385]
[1733257748495,0.81829568,95478.0,95477.0,0.052385]
[1733257749494,0.66137353,95478.0,95477.0,0.052385]
[1733257750895,0.13388,95478.0,95477.0,0.053385]
[1733257752500,0.15692215,95482.0,95481.0,0.052342]
[1733257752703,0.15692215,95488.0,95481.0,0.052342]
[1733257753002,0.13388,95495.0,95487.0,0.36084]
[1733257753304,0.13388,95495.0,95494.0,0.052375]
[1733257753697,0.3608,95497.0,95494.0,0.052375]
[1733257753698,0.13388,95496.0,95495.0,0.052335]
[1733257753893,0.13388,95496.0,95495.0,1.552335]
[1733257754098,0.13388,95496.0,95495.0,1.552375]
[1733257756499,0.13788,95496.0,95495.0,1.552375]
[1733257757400,0.26326907,95496.0,95495.0,1.552375]
[1733257757700,0.13788,95496.0,95495.0,1.552375]
[1733257759502,0.004,95496.0,95495.0,1.552375]
[1733257760199,0.0980186,95496.0,95495.0,1.552375]
[1733257760403,0.004,95496.0,95495.0,1.552375]
[1733257767218,0.004,95496.0,95495.0,1.57332036]
[1733257771725,0.004,95496.0,95495.0,2.03883733]
[1733257771929,0.1,95500.0,95499.0,0.052333]
[1733257772226,0.1,95500.0,95499.0,0.052373]
[1733257773421,0.105,95500.0,95499.0,0.052373]
[1733257774932,0.1,95500.0,95499.0,0.052373]
[1733257775134,0.1,95500.0,95499.0,0.053373]
[1733257777035,0.1,95500.0,95499.0,0.15817478]
[1733257777421,0.1,95500.0,95499.0,1.8461535]
[1733257777625,0.1,95500.0,95499.0,1.65817478]
[1733257778128,0.06365712,95500.0,95499.0,1.65817478]
[1733257779539,0.06365712,95500.0,95499.0,1.6890038]
[1733257781431,0.15761096,95500.0,95499.0,1.6890038]
[1733257782535,0.03093341,95500.0,95499.0,1.6890038]
[1733257782935,0.09730251,95504.0,95503.0,0.05233]
[1733257783137,0.02943751,95504.0,95503.0,0.41313]
[1733257783331,0.00068,95520.0,95503.0,0.4946]
[1733257783632,0.08599112,95530.0,95529.0,0.052316]
[1733257783831,0.53749353,95530.0,95529.0,0.052316]
[1733257784024,0.53749353,95530.0,95529.0,1.552356]
[1733257784835,0.53949353,95530.0,95529.0,1.552356]
[1733257785038,0.67325353,95530.0,95529.0,1.552356]
[1733257786637,0.67325353,95530.0,95529.0,1.58233147]
[1733257786838,0.66325353,95530.0,95529.0,1.58233147]
[1733257787233,0.66325353,95530.0,95529.0,1.94313147]
[1733257790340,0.002,95530.0,95529.0,1.94313147]
[1733257790535,0.35468001,95536.0,95535.0,0.052313]
[1733257790731,0.88161353,95536.0,95535.0,0.052313]
[1733257790929,0.88161353,95536.0,95535.0,0.052353]
[1733257791841,0.88461353,95536.0,95535.0,0.052353]
[1733257798046,0.66421353,95536.0,95535.0,0.052353]
[1733257798244,0.003,95536.0,95535.0,0.052353]
[1733257798435,0.003,95536.0,95535.0,0.15702613]